[Event "Israeli U18-Team-ch 2024"]
[Site "Rishon LeZion"]
[Date "2024.08.01"]
[Round "6.11"]
[White "Hasson Schrager, Shalev"]
[Black "Azoulay, Yehonatan"]
[Result "0-1"]
[ECO "D00"]
[WhiteElo "1972"]
[BlackElo "2009"]
[Annotator "RC"]
[PlyCount "74"]
[EventDate "2024.08.01"]
[EventType "team-tourn"]
[EventCountry "ISR"]
[SourceTitle "playchess.com"]
[Source "ChessBase"]
[SourceQuality "1"]
[TimeControl "3000+10"]

1. d4 {[%emt 0:00:03]} Nf6 {[%emt 0:00:03]} 2. Nc3 {[%emt 0:00:04]} d5 {[%emt 0:00:04]} 3. Bf4 {[%emt 0:00:04]} e6 {[%emt 0:00:02]} 4. e3 {[%emt 0:00:04]} Bb4 {[%emt 0:00:03]} 5. Bd3 {[%emt 0:01:08]} c5 {[%emt 0:02:28]} 6. Nf3 {[%emt 0:00:32]} c4 {[%emt 0:00:31]} 7. Be2 {[%emt 0:00:01]} Bxc3+ {[%emt 0:01:11]} 8. bxc3 {[%emt 0:00:11]} Ne4 {[%emt 0:00:03]} 9. Ne5 {[%emt 0:04:12]} Nxc3 {[%emt 0:01:40]} 10. Qd2 {[%emt 0:00:01]} Nxe2 {[%emt 0:00:02]} 11. Qxe2 {[%emt 0:00:08]} Qa5+ {[%emt 0:00:59]} 12. Kf1 {[%emt 0:00:01]} O-O {[%emt 0:00:26]} 13. h4 {[%emt 0:00:47]} f6 {[%emt 0:04:40]} 14. Nf3 {[%emt 0:02:09]} Nc6 {[%emt 0:08:50]} 15. Rd1 {[%emt 0:11:01]} b6 {[%emt 0:06:41]} 16. e4 {[%emt 0:05:15]} Ba6 {[%emt 0:03:28]} 17. Kg1 {[%emt 0:00:10]} dxe4 {[%emt 0:01:28]} 18. Qxe4 {[%emt 0:00:01]} Qd5 {[%emt 0:00:01]} 19. Qe2 {[%emt 0:04:02]} Rad8 {[%emt 0:02:09]} 20. Kh2 {[%emt 0:23:36]} h5 {[%emt 0:00:33]} 21. Rhg1 {[%emt 0:00:00]} Bc8 {[%emt 0:02:06]} 22. Be3 {[%emt 0:00:00]} b5 {[%emt 0:03:22]} 23. g4 {[%emt 0:00:00]} hxg4 {[%emt 0:01:14]} 24. Rxg4 {[%emt 0:00:00]} e5 {[%emt 0:00:55]} 25. Rg3 {[%emt 0:00:00]} e4 {[%emt 0:00:36]} 26. Ne1 {[%emt 0:00:00]} f5 {[%emt 0:01:44]} 27. Ng2 {[%emt 0:00:00]} Ne5 {[%emt 0:01:18]} 28. Nf4 {[%emt 0:00:00]} Nf3+ {[%emt 0:00:50]} 29. Kh1 {[%emt 0:00:00]} Qd6 {[%emt 0:02:37]} 30. a4 {[%emt 0:00:00]} a6 {[%emt 0:00:59]} 31. axb5 {[%emt 0:00:00]} axb5 {[%emt 0:00:03]} 32. Ra1 {[%emt 0:00:00]} Rd7 {[%emt 0:01:24]} 33. d5 {[%emt 0:00:00]} Qf6 {[%emt 0:00:17]} 34. Ra8 {[%emt 0:00:00]} Rxd5 {[%emt 0:01:54]} 35. Ra7 {[%emt 0:00:54]} Rd7 {[%emt 0:00:01]} 36. Rxd7 {[%emt 0:00:27]} Bxd7 {[%emt 0:00:01]} 37. h5 {[%emt 0:00:52]} Qa1+ {[%emt 0:00:01]} 0-1

[Event "Israeli U18-Team-ch 2024"]
[Site "Rishon LeZion"]
[Date "2024.08.01"]
[Round "6.13"]
[White "Orian, Noga"]
[Black "Menahem, Adi"]
[Result "1/2-1/2"]
[ECO "E11"]
[WhiteElo "2113"]
[BlackElo "2228"]
[Annotator "RC"]
[PlyCount "80"]
[EventDate "2024.08.01"]
[EventType "team-tourn"]
[EventCountry "ISR"]
[SourceTitle "playchess.com"]
[Source "ChessBase"]
[SourceQuality "1"]
[TimeControl "3000+10"]

1. d4 {[%emt 0:00:04]} Nf6 {[%emt 0:01:43]} 2. c4 {[%emt 0:00:13]} e6 {[%emt 0:00:04]} 3. g3 {[%emt 0:00:52]} d5 {[%emt 0:00:17]} 4. Nf3 {[%emt 0:00:12]} Bb4+ {[%emt 0:00:39]} 5. Bd2 {[%emt 0:00:11]} Be7 {[%emt 0:00:06]} 6. Bg2 {[%emt 0:00:14]} c6 {[%emt 0:00:47]} 7. Qc2 {[%emt 0:00:39]} Nbd7 {[%emt 0:00:48]} 8. O-O {[%emt 0:00:09]} Ne4 {[%emt 0:00:34]} 9. Be3 {[%emt 0:01:19]} Nd6 {[%emt 0:02:49]} 10. b3 {[%emt 0:00:58]} f5 {[%emt 0:02:26]} 11. cxd5 {[%emt 0:02:35]} cxd5 {[%emt 0:01:44]} 12. Nc3 {[%emt 0:02:05]} O-O {[%emt 0:02:05]} 13. Rac1 {[%emt 0:01:44]} b6 {[%emt 0:01:51]} 14. Qd2 {[%emt 0:00:41]} Nf7 {[%emt 0:07:48]} 15. Ne1 {[%emt 0:05:49]} Ba6 {[%emt 0:03:23]} 16. Nd3 {[%emt 0:01:00]} Nf6 {[%emt 0:01:26]} 17. f3 {[%emt 0:01:05]} Rc8 {[%emt 0:00:50]} 18. a4 {[%emt 0:01:13]} Ba3 {[%emt 0:03:23]} 19. Rc2 {[%emt 0:02:06]} Qe7 {[%emt 0:00:45]} 20. Ra1 {[%emt 0:01:30]} Rc7 {[%emt 0:05:40]} 21. Bf4 {[%emt 0:03:47]} Bd6 {[%emt 0:00:37]} 22. Bxd6 {[%emt 0:00:30]} Qxd6 {[%emt 0:00:51]} 23. Nb5 {[%emt 0:00:46]} Bxb5 {[%emt 0:04:06]} 24. axb5 {[%emt 0:00:02]} Rfc8 {[%emt 0:00:41]} 25. Rxc7 {[%emt 0:01:04]} Rxc7 {[%emt 0:00:04]} 26. Nb4 {[%emt 0:00:48]} Qd7 {[%emt 0:00:24]} 27. Nc6 {[%emt 0:03:26]} Nd6 {[%emt 0:00:05]} 28. Qb4 {[%emt 0:00:15]} Nxb5 {[%emt 0:00:17]} 29. Qxb5 {[%emt 0:00:02]} Qxc6 {[%emt 0:00:06]} 30. Qxc6 {[%emt 0:00:13]} Rxc6 {[%emt 0:00:03]} 31. Rxa7 {[%emt 0:00:16]} Rc3 {[%emt 0:02:03]} 32. Re7 {[%emt 0:00:53]} Rxb3 {[%emt 0:00:03]} 33. Rxe6 {[%emt 0:00:08]} Kf7 {[%emt 0:00:17]} 34. Rc6 {[%emt 0:01:30]} b5 {[%emt 0:01:51]} 35. Rb6 {[%emt 0:02:14]} b4 {[%emt 0:01:52]} 36. Bh3 {[%emt 0:01:00]} g6 {[%emt 0:00:26]} 37. Rb7+ {[%emt 0:01:41]} Ke6 {[%emt 0:03:26]} 38. Rb6+ {[%emt 0:00:27]} Kf7 {[%emt 0:00:00]} 39. Rb7+ {[%emt 0:00:08]} Ke6 {[%emt 0:00:00]} 40. Rb6+ {[%emt 0:00:06]} Kf7 {[%emt 0:00:00]} 1/2-1/2

[Event "Israeli U18-Team-ch 2024"]
[Site "Rishon LeZion"]
[Date "2024.08.01"]
[Round "6.14"]
[White "Rinberg, David"]
[Black "Pevzner, Maks"]
[Result "0-1"]
[ECO "B35"]
[WhiteElo "1939"]
[BlackElo "2052"]
[Annotator "RC"]
[PlyCount "50"]
[EventDate "2024.08.01"]
[EventType "team-tourn"]
[EventCountry "ISR"]
[SourceTitle "playchess.com"]
[Source "ChessBase"]
[SourceQuality "1"]
[TimeControl "3000+10"]

1. e4 {[%emt 0:00:03]} c5 {[%emt 0:00:07]} 2. Nf3 {[%emt 0:00:10]} g6 {[%emt 0:00:24]} 3. d4 {[%emt 0:00:18]} cxd4 {[%emt 0:00:14]} 4. Nxd4 {[%emt 0:00:19]} Bg7 {[%emt 0:00:10]} 5. Nc3 {[%emt 0:00:33]} Nc6 {[%emt 0:00:11]} 6. Be3 {[%emt 0:00:08]} Nf6 {[%emt 0:00:24]} 7. Bc4 {[%emt 0:00:23]} O-O {[%emt 0:00:23]} 8. Bb3 {[%emt 0:00:10]} Re8 {[%emt 0:00:47]} 9. O-O {[%emt 0:02:31]} d6 {[%emt 0:01:27]} 10. h3 {[%emt 0:00:39]} Na5 {[%emt 0:01:28]} 11. f4 {[%emt 0:01:55]} a6 {[%emt 0:00:30]} 12. g4 {[%emt 0:17:17]} e5 {[%emt 0:03:35]} 13. Nde2 {[%emt 0:07:18]} Nxb3 {[%emt 0:00:43]} 14. axb3 {[%emt 0:00:20]} exf4 {[%emt 0:00:51]} 15. Bxf4 {[%emt 0:02:29]} Nxe4 {[%emt 0:01:41]} 16. Qd3 {[%emt 0:03:57]} Nxc3 {[%emt 0:03:02]} 17. Nxc3 {[%emt 0:00:02]} Qb6+ {[%emt 0:03:51]} 18. Kh2 {[%emt 0:00:43]} Be6 {[%emt 0:00:23]} 19. Be3 {[%emt 0:02:51]} Qc7 {[%emt 0:10:06]} 20. Bd4 {[%emt 0:01:23]} d5+ {[%emt 0:00:59]} 21. Kg2 {[%emt 0:00:14]} Bd7 {[%emt 0:01:44]} 22. Bxg7 {[%emt 0:02:16]} Kxg7 {[%emt 0:00:06]} 23. Rf3 {[%emt 0:03:45]} Bc6 {[%emt 0:00:50]} 24. Raf1 {[%emt 0:00:36]} d4 {[%emt 0:00:34]} 25. Qxd4+ {[%emt 0:00:06]} Qe5 {[%emt 0:00:14]} 0-1

[Event "Israeli U18-Team-ch 2024"]
[Site "Rishon LeZion"]
[Date "2024.08.01"]
[Round "6.15"]
[White "Zuev, Ilya"]
[Black "Gartenfloys, Mark"]
[Result "0-1"]
[ECO "A48"]
[WhiteElo "1908"]
[BlackElo "1808"]
[Annotator "RC"]
[PlyCount "89"]
[EventDate "2024.08.01"]
[EventType "team-tourn"]
[EventCountry "ISR"]
[SourceTitle "playchess.com"]
[Source "ChessBase"]
[SourceQuality "1"]
[TimeControl "3000+10"]

1. d4 {[%emt 0:00:06]} Nf6 {[%emt 0:00:19]} 2. Nf3 {[%emt 0:00:05]} g6 {[%emt 0:00:11]} 3. Bf4 {[%emt 0:00:23]} Bg7 {[%emt 0:01:17]} 4. e3 {[%emt 0:00:12]} O-O {[%emt 0:00:35]} 5. h3 {[%emt 0:00:23]} d6 {[%emt 0:01:55]} 6. Be2 {[%emt 0:00:11]} Nbd7 {[%emt 0:00:59]} 7. O-O {[%emt 0:00:12]} c5 {[%emt 0:01:21]} 8. c3 {[%emt 0:01:08]} a6 {[%emt 0:01:00]} 9. a4 {[%emt 0:01:03]} b6 {[%emt 0:01:24]} 10. Nbd2 {[%emt 0:02:21]} Bb7 {[%emt 0:01:35]} 11. Bd3 {[%emt 0:09:06]} Nd5 {[%emt 0:05:33]} 12. Bg3 {[%emt 0:01:50]} Nc7 {[%emt 0:06:05]} 13. Be4 {[%emt 0:03:47]} Bxe4 {[%emt 0:06:46]} 14. Nxe4 {[%emt 0:00:04]} Nf6 {[%emt 0:01:46]} 15. Qc2 {[%emt 0:06:02]} Ne6 {[%emt 0:07:01]} 16. Rfd1 {[%emt 0:03:02]} b5 {[%emt 0:07:29]} 17. Nxf6+ {[%emt 0:10:16]} Bxf6 {[%emt 0:00:04]} 18. Nd2 {[%emt 0:01:38]} c4 {[%emt 0:02:56]} 19. Ra2 {[%emt 0:03:09]} Qb6 {[%emt 0:00:54]} 20. Rda1 {[%emt 0:02:36]} Nc7 {[%emt 0:00:13]} 21. Qb1 {[%emt 0:00:57]} Rfb8 {[%emt 0:00:11]} 22. axb5 {[%emt 0:00:41]} axb5 {[%emt 0:00:06]} 23. Rxa8 {[%emt 0:00:03]} Rxa8 {[%emt 0:00:24]} 24. Rxa8+ {[%emt 0:00:02]} Nxa8 {[%emt 0:00:01]} 25. Qa2 {[%emt 0:00:16]} Nc7 {[%emt 0:00:24]} 26. Kf1 {[%emt 0:01:52]} Na6 {[%emt 0:01:51]} 27. f3 {[%emt 0:01:23]} d5 {[%emt 0:00:25]} 28. e4 {[%emt 0:01:15]} e6 {[%emt 0:00:08]} 29. Ke2 {[%emt 0:00:20]} Be7 {[%emt 0:00:19]} 30. Bf2 {[%emt 0:00:30]} Bg5 {[%emt 0:01:20]} 31. e5 {[%emt 0:00:14]} Be7 {[%emt 0:00:24]} 32. Be3 {[%emt 0:00:08]} Kg7 {[%emt 0:00:10]} 33. Kf2 {[%emt 0:00:12]} Bd8 {[%emt 0:00:06]} 34. Qb1 {[%emt 0:00:10]} b4 {[%emt 0:00:06]} 35. Qc1 {[%emt 0:00:04]} b3 {[%emt 0:00:21]} 36. Nf1 {[%emt 0:00:09]} Qa5 {[%emt 0:00:10]} 37. Bh6+ {[%emt 0:00:02]} Kg8 {[%emt 0:00:03]} 38. Nh2 {[%emt 0:00:23]} Qa2 {[%emt 0:00:02]} 39. Ng4 {[%emt 0:00:04]} Be7 {[%emt 0:00:30]} 40. Nf6+ {[%emt 0:00:18]} Bxf6 {[%emt 0:00:09]} 41. exf6 {[%emt 0:00:02]} Nc7 {[%emt 0:00:03]} 42. Qf4 {[%emt 0:00:18]} Qxb2+ {[%emt 0:00:03]} 43. Kg1 {[%emt 0:00:03]} Qa1+ {[%emt 0:00:07]} 44. Kh2 {[%emt 0:00:03]} Qa7 {[%emt 0:00:12]} 45. Bf8 {[%emt 0:00:37]} 0-1

[Event "Israeli U18-Team-ch 2024"]
[Site "Rishon LeZion"]
[Date "2024.08.01"]
[Round "6.16"]
[White "Rabinovich, Yoav"]
[Black "Mendler, Omer"]
[Result "1-0"]
[ECO "D02"]
[WhiteElo "2012"]
[BlackElo "1930"]
[Annotator "RC"]
[PlyCount "93"]
[EventDate "2024.08.01"]
[EventType "team-tourn"]
[EventCountry "ISR"]
[SourceTitle "playchess.com"]
[Source "ChessBase"]
[SourceQuality "1"]
[TimeControl "3000+10"]

1. d4 {[%emt 0:00:10]} Nf6 {[%emt 0:00:04]} 2. c4 {[%emt 0:00:02]} e6 {[%emt 0:00:04]} 3. Nf3 {[%emt 0:00:02]} b6 {[%emt 0:00:04]} 4. g3 {[%emt 0:00:02]} Bb7 {[%emt 0:00:05]} 5. Bg2 {[%emt 0:00:01]} d5 {[%emt 0:01:07]} 6. cxd5 {[%emt 0:00:02]} exd5 {[%emt 0:00:56]} 7. O-O {[%emt 0:00:02]} Bd6 {[%emt 0:00:30]} 8. Nc3 {[%emt 0:00:01]} O-O {[%emt 0:00:07]} 9. Nh4 {[%emt 0:00:14]} Re8 {[%emt 0:01:10]} 10. Bg5 {[%emt 0:04:56]} c6 {[%emt 0:08:00]} 11. e4 {[%emt 0:09:43]} dxe4 {[%emt 0:01:14]} 12. Nxe4 {[%emt 0:00:09]} Be7 {[%emt 0:00:04]} 13. Nf5 {[%emt 0:00:45]} Nd5 {[%emt 0:02:28]} 14. Qh5 {[%emt 0:14:21]} Bc8 {[%emt 0:07:00]} 15. Bxe7 {[%emt 0:04:36]} Nxe7 {[%emt 0:00:14]} 16. Nfd6 {[%emt 0:00:02]} Ng6 {[%emt 0:03:50]} 17. Nxe8 {[%emt 0:00:36]} Qxe8 {[%emt 0:00:05]} 18. Nd6 {[%emt 0:02:49]} Qd8 {[%emt 0:00:17]} 19. Nxc8 {[%emt 0:00:04]} Qxc8 {[%emt 0:00:05]} 20. Rac1 {[%emt 0:00:34]} Qd7 {[%emt 0:00:30]} 21. d5 {[%emt 0:00:23]} c5 {[%emt 0:00:29]} 22. Rfe1 {[%emt 0:01:49]} Na6 {[%emt 0:00:47]} 23. Qe2 {[%emt 0:00:48]} Nc7 {[%emt 0:07:10]} 24. d6 {[%emt 0:00:09]} Re8 {[%emt 0:00:03]} 25. dxc7 {[%emt 0:01:54]} Rxe2 {[%emt 0:00:04]} 26. Rxe2 {[%emt 0:00:01]} Qxc7 {[%emt 0:01:45]} 27. Re8+ {[%emt 0:00:08]} Nf8 {[%emt 0:00:04]} 28. Rd1 {[%emt 0:00:22]} c4 {[%emt 0:01:11]} 29. Rdd8 {[%emt 0:00:04]} Qc5 {[%emt 0:00:04]} 30. Rxf8+ {[%emt 0:00:13]} Qxf8 {[%emt 0:00:04]} 31. Rxf8+ {[%emt 0:00:02]} Kxf8 {[%emt 0:00:02]} 32. a4 {[%emt 0:00:25]} a6 {[%emt 0:00:42]} 33. Bb7 {[%emt 0:00:02]} b5 {[%emt 0:00:11]} 34. Bxa6 {[%emt 0:00:10]} c3 {[%emt 0:00:24]} 35. bxc3 {[%emt 0:00:09]} bxa4 {[%emt 0:00:03]} 36. Kf1 {[%emt 0:00:15]} Ke7 {[%emt 0:15:13]} 37. Ke2 {[%emt 0:00:07]} a3 {[%emt 0:00:00]} 38. Bc4 {[%emt 0:00:01]} f5 {[%emt 0:00:00]} 39. Kd2 {[%emt 0:00:16]} Kf6 {[%emt 0:00:00]} 40. f4 {[%emt 0:00:31]} g5 {[%emt 0:00:00]} 41. Ke3 {[%emt 0:00:01]} h5 {[%emt 0:00:00]} 42. h3 {[%emt 0:00:34]} h4 {[%emt 0:00:00]} 43. gxh4 {[%emt 0:00:01]} g4 {[%emt 0:00:00]} 44. hxg4 {[%emt 0:00:13]} fxg4 {[%emt 0:00:00]} 45. Kf2 {[%emt 0:00:11]} Kg6 {[%emt 0:00:00]} 46. Kg3 {[%emt 0:00:11]} Kf5 {[%emt 0:00:00]} 47. Ba2 {[%emt 0:00:10]} 1-0

[Event "Israeli U18-Team-ch 2024"]
[Site "Rishon LeZion"]
[Date "2024.08.01"]
[Round "7.2"]
[White "Ribstein, Orel"]
[Black "Milikow, Elie"]
[Result "0-1"]
[ECO "D02"]
[WhiteElo "2066"]
[BlackElo "2399"]
[Annotator "RC"]
[PlyCount "76"]
[EventDate "2024.08.01"]
[EventType "team-tourn"]
[EventCountry "ISR"]
[SourceTitle "playchess.com"]
[Source "ChessBase"]
[SourceQuality "1"]
[TimeControl "3000+10"]

1. d4 {[%emt 0:01:05]} Nf6 {[%emt 0:01:15]} 2. Nf3 {[%emt 0:00:03]} d5 {[%emt 0:00:26]} 3. Bf4 {[%emt 0:00:04]} e6 {[%emt 0:00:53]} 4. e3 {[%emt 0:00:08]} b6 {[%emt 0:00:46]} 5. Nbd2 {[%emt 0:00:37]} Bb7 {[%emt 0:00:16]} 6. c3 {[%emt 0:00:05]} Bd6 {[%emt 0:00:26]} 7. Ne5 {[%emt 0:00:04]} O-O {[%emt 0:01:04]} 8. h4 {[%emt 0:00:02]} c5 {[%emt 0:00:52]} 9. Bd3 {[%emt 0:03:57]} Qc7 {[%emt 0:02:06]} 10. h5 {[%emt 0:00:47]} Nc6 {[%emt 0:10:01]} 11. Ndf3 {[%emt 0:01:05]} Ne4 {[%emt 0:01:52]} 12. h6 {[%emt 0:08:24]} g6 {[%emt 0:01:37]} 13. Nxc6 {[%emt 0:00:09]} Bxc6 {[%emt 0:01:44]} 14. Bxd6 {[%emt 0:01:26]} Nxd6 {[%emt 0:00:38]} 15. Ne5 {[%emt 0:02:02]} Bb7 {[%emt 0:04:34]} 16. Qg4 {[%emt 0:03:48]} Kh8 {[%emt 0:05:02]} 17. Nf3 {[%emt 0:08:19]} Rae8 {[%emt 0:01:28]} 18. O-O-O {[%emt 0:02:46]} Qe7 {[%emt 0:07:36]} 19. Nh4 {[%emt 0:01:53]} Rg8 {[%emt 0:01:41]} 20. f4 {[%emt 0:01:02]} f6 {[%emt 0:01:56]} 21. Nf3 {[%emt 0:00:33]} c4 {[%emt 0:01:16]} 22. Bb1 {[%emt 0:02:51]} b5 {[%emt 0:00:18]} 23. Qh4 {[%emt 0:00:23]} a5 {[%emt 0:00:31]} 24. Qe1 {[%emt 0:01:03]} Bc6 {[%emt 0:01:20]} 25. g4 {[%emt 0:00:54]} Rb8 {[%emt 0:00:30]} 26. f5 {[%emt 0:05:09]} exf5 {[%emt 0:00:54]} 27. gxf5 {[%emt 0:00:01]} g5 {[%emt 0:00:09]} 28. Rh2 {[%emt 0:04:30]} b4 {[%emt 0:00:46]} 29. Re2 {[%emt 0:00:01]} Ba4 {[%emt 0:01:09]} 30. e4 {[%emt 0:00:56]} Bxd1 {[%emt 0:00:04]} 31. Kxd1 {[%emt 0:00:20]} dxe4 {[%emt 0:00:31]} 32. Bxe4 {[%emt 0:00:02]} Nxe4 {[%emt 0:00:32]} 33. Rxe4 {[%emt 0:00:01]} Qd7 {[%emt 0:00:01]} 34. Re6 {[%emt 0:00:30]} Qa4+ {[%emt 0:00:20]} 35. Ke2 {[%emt 0:00:28]} Qc2+ {[%emt 0:00:18]} 36. Ke3 {[%emt 0:00:28]} Qxf5 {[%emt 0:00:24]} 37. Re7 {[%emt 0:00:09]} bxc3 {[%emt 0:00:23]} 38. Qxc3 {[%emt 0:00:13]} Rge8 {[%emt 0:00:10]} 0-1

[Event "Israeli U18-Team-ch 2024"]
[Site "Rishon LeZion"]
[Date "2024.08.01"]
[Round "7.3"]
[White "Dezent, Eyal"]
[Black "Azoulay, Yehonatan"]
[Result "0-1"]
[ECO "A45"]
[WhiteElo "2076"]
[BlackElo "2009"]
[Annotator "RC"]
[PlyCount "72"]
[EventDate "2024.08.01"]
[EventType "team-tourn"]
[EventCountry "ISR"]
[SourceTitle "playchess.com"]
[Source "ChessBase"]
[SourceQuality "1"]
[TimeControl "3000+10"]

1. d4 {[%emt 0:50:20]} Nf6 {[%emt 0:50:20]} 2. Bg5 {[%emt 0:00:00]} g6 {[%emt 0:00:00]} 3. Bxf6 {[%emt 0:00:00]} exf6 {[%emt 0:00:00]} 4. e3 {[%emt 0:00:00]} Bg7 {[%emt 0:00:00]} 5. Ne2 {[%emt 0:00:00]} f5 {[%emt 0:00:00]} 6. g3 {[%emt 0:00:00]} O-O {[%emt 0:00:00]} 7. Bg2 {[%emt 0:00:00]} d6 {[%emt 0:00:00]} 8. O-O {[%emt 0:00:00]} c6 {[%emt 0:00:00]} 9. c4 {[%emt 0:00:00]} Nd7 {[%emt 0:00:00]} 10. Nbc3 {[%emt 0:00:00]} Nf6 {[%emt 0:00:00]} 11. Qc2 {[%emt 0:00:00]} Bd7 {[%emt 0:00:00]} 12. Rfd1 {[%emt 0:00:00]} Rc8 {[%emt 0:00:00]} 13. Qb3 {[%emt 0:00:00]} Qc7 {[%emt 0:00:00]} 14. d5 {[%emt 0:00:00]} c5 {[%emt 0:00:00]} 15. a4 {[%emt 0:00:00]} b6 {[%emt 0:00:00]} 16. Ra2 {[%emt 0:00:00]} a6 {[%emt 0:00:00]} 17. Rda1 {[%emt 0:02:40]} Rb8 {[%emt 0:00:00]} 18. Qc2 {[%emt 0:00:00]} h5 {[%emt 0:00:00]} 19. h4 {[%emt 0:00:00]} Rb7 {[%emt 0:00:00]} 20. a5 {[%emt 0:00:00]} b5 {[%emt 0:00:00]} 21. cxb5 {[%emt 0:00:00]} axb5 {[%emt 0:00:00]} 22. a6 {[%emt 0:00:00]} Ra7 {[%emt 0:00:00]} 23. Ra5 {[%emt 0:00:00]} Rb8 {[%emt 0:00:00]} 24. Qb3 {[%emt 0:00:00]} Qb6 {[%emt 0:00:00]} 25. Nf4 {[%emt 0:00:03]} Ne8 {[%emt 0:00:00]} 26. Bf1 {[%emt 0:00:30]} Nc7 {[%emt 0:00:00]} 27. Qa2 {[%emt 0:00:36]} Rba8 {[%emt 0:00:00]} 28. Qb3 {[%emt 0:00:14]} Rxa6 {[%emt 0:00:00]} 29. Rxa6 {[%emt 0:00:22]} Rxa6 {[%emt 0:00:00]} 30. Rxa6 {[%emt 0:00:12]} Qxa6 {[%emt 0:00:00]} 31. Qc2 {[%emt 0:00:08]} Qa1 {[%emt 0:00:00]} 32. Kg2 {[%emt 0:00:06]} b4 {[%emt 0:00:00]} 33. Nd1 {[%emt 0:00:02]} Ba4 {[%emt 0:00:00]} 34. b3 {[%emt 0:00:06]} Bb5 {[%emt 0:00:00]} 35. Bxb5 {[%emt 0:00:25]} Nxb5 {[%emt 0:00:00]} 36. e4 {[%emt 0:00:14]} Nd4 {[%emt 0:00:00]} 0-1

[Event "Israeli U18-Team-ch 2024"]
[Site "Rishon LeZion"]
[Date "2024.08.01"]
[Round "7.4"]
[White "Belkovsky, Guy"]
[Black "Gilor, Amit"]
[Result "0-1"]
[ECO "B45"]
[WhiteElo "1869"]
[BlackElo "1905"]
[Annotator "RC"]
[PlyCount "42"]
[EventDate "2024.08.01"]
[EventType "team-tourn"]
[EventCountry "ISR"]
[SourceTitle "playchess.com"]
[Source "ChessBase"]
[SourceQuality "1"]
[TimeControl "3000+10"]

1. e4 {[%emt 0:50:20]} c5 {[%emt 0:00:06]} 2. Nf3 {[%emt 0:00:00]} e6 {[%emt 0:00:04]} 3. d4 {[%emt 0:00:00]} cxd4 {[%emt 0:00:06]} 4. Nxd4 {[%emt 0:00:00]} Nf6 {[%emt 0:00:06]} 5. Nc3 {[%emt 0:00:00]} Nc6 {[%emt 0:00:07]} 6. Nxc6 {[%emt 0:00:00]} bxc6 {[%emt 0:00:07]} 7. e5 {[%emt 0:00:00]} Nd5 {[%emt 0:00:04]} 8. Ne4 {[%emt 0:00:00]} Qc7 {[%emt 0:00:07]} 9. f4 {[%emt 0:00:00]} Qb6 {[%emt 0:00:06]} 10. c4 {[%emt 0:00:00]} Ne3 {[%emt 0:00:40]} 11. Qd3 {[%emt 0:00:00]} Bb4+ {[%emt 0:00:34]} 12. Bd2 {[%emt 0:00:00]} Ba6 {[%emt 0:00:42]} 13. b3 {[%emt 0:00:00]} O-O {[%emt 0:10:02]} 14. Bxb4 {[%emt 0:00:00]} Qxb4+ {[%emt 0:00:09]} 15. Ke2 {[%emt 0:00:00]} Nxc4 {[%emt 0:39:40]} 16. a3 {[%emt 0:00:00]} Nxa3 {[%emt 0:00:00]} 17. Qxa6 {[%emt 0:00:00]} Qxe4+ {[%emt 0:00:00]} 18. Kd2 {[%emt 0:00:00]} Qxf4+ {[%emt 0:00:00]} 19. Kd3 {[%emt 0:00:00]} Qf5+ {[%emt 0:00:00]} 20. Kd4 {[%emt 0:00:00]} c5+ {[%emt 0:00:00]} 21. Ke3 {[%emt 0:00:00]} Qxe5+ {[%emt 0:00:00]} 0-1

[Event "Israeli U18-Team-ch 2024"]
[Site "Rishon LeZion"]
[Date "2024.08.01"]
[Round "7.5"]
[White "Aizenberg, Benny"]
[Black "Sokolovsky, Yahli"]
[Result "0-1"]
[ECO "C95"]
[WhiteElo "2413"]
[BlackElo "2492"]
[Annotator "RC"]
[PlyCount "132"]
[EventDate "2024.08.01"]
[EventType "team-tourn"]
[EventCountry "ISR"]
[SourceTitle "playchess.com"]
[Source "ChessBase"]
[SourceQuality "1"]
[TimeControl "3000+10"]

1. e4 {[%emt 0:00:08]} e5 {[%emt 0:01:42]} 2. Nf3 {[%emt 0:00:10]} Nc6 {[%emt 0:00:05]} 3. Bb5 {[%emt 0:00:04]} a6 {[%emt 0:00:05]} 4. Ba4 {[%emt 0:00:04]} Nf6 {[%emt 0:00:04]} 5. O-O {[%emt 0:00:05]} Be7 {[%emt 0:00:01]} 6. Re1 {[%emt 0:00:08]} b5 {[%emt 0:00:03]} 7. Bb3 {[%emt 0:00:05]} d6 {[%emt 0:00:04]} 8. c3 {[%emt 0:00:04]} O-O {[%emt 0:00:04]} 9. h3 {[%emt 0:00:03]} Nb8 {[%emt 0:00:03]} 10. d4 {[%emt 0:00:04]} Nbd7 {[%emt 0:00:03]} 11. Nbd2 {[%emt 0:00:10]} c5 {[%emt 0:00:03]} 12. Nf1 {[%emt 0:00:37]} Re8 {[%emt 0:00:04]} 13. Ng3 {[%emt 0:00:30]} Bf8 {[%emt 0:00:06]} 14. Bc2 {[%emt 0:01:08]} a5 {[%emt 0:00:07]} 15. b3 {[%emt 0:01:46]} b4 {[%emt 0:14:53]} 16. d5 {[%emt 0:02:24]} bxc3 {[%emt 0:00:22]} 17. Qd3 {[%emt 0:01:11]} a4 {[%emt 0:03:09]} 18. Qxc3 {[%emt 0:01:31]} axb3 {[%emt 0:05:18]} 19. Bxb3 {[%emt 0:01:32]} Nb6 {[%emt 0:01:05]} 20. a4 {[%emt 0:02:07]} Re7 {[%emt 0:01:10]} 21. a5 {[%emt 0:05:51]} Rea7 {[%emt 0:00:08]} 22. Nd2 {[%emt 0:01:13]} g6 {[%emt 0:06:08]} 23. Ngf1 {[%emt 0:02:37]} Nh5 {[%emt 0:05:54]} 24. Bb2 {[%emt 0:04:15]} Nd7 {[%emt 0:00:22]} 25. Nc4 {[%emt 0:00:05]} Rb8 {[%emt 0:03:10]} 26. Bd1 {[%emt 0:02:28]} Ba6 {[%emt 0:01:36]} 27. Nfd2 {[%emt 0:02:39]} Qg5 {[%emt 0:02:34]} 28. Bg4 {[%emt 0:07:03]} Ng7 {[%emt 0:03:39]} 29. Be2 {[%emt 0:02:08]} Nh5 {[%emt 0:00:30]} 30. Bc1 {[%emt 0:02:04]} Nf4 {[%emt 0:00:12]} 31. Bf1 {[%emt 0:00:07]} Qe7 {[%emt 0:01:26]} 32. g3 {[%emt 0:01:32]} Nh5 {[%emt 0:00:02]} 33. Ne3 {[%emt 0:09:47]} Bc8 {[%emt 0:00:14]} 34. Qc2 {[%emt 0:00:00]} Nhf6 {[%emt 0:00:22]} 35. Bb2 {[%emt 0:00:00]} Ne8 {[%emt 0:00:06]} 36. Bc3 {[%emt 0:00:00]} Bh6 {[%emt 0:00:30]} 37. Ndc4 {[%emt 0:00:00]} Nc7 {[%emt 0:00:09]} 38. Bd2 {[%emt 0:00:00]} Nb5 {[%emt 0:00:17]} 39. Reb1 {[%emt 0:00:00]} Nd4 {[%emt 0:00:06]} 40. Qd1 {[%emt 0:00:00]} Rxb1 {[%emt 0:00:19]} 41. Rxb1 {[%emt 0:00:00]} Ba6 {[%emt 0:00:23]} 42. Kg2 {[%emt 0:00:00]} Kg7 {[%emt 0:00:32]} 43. h4 {[%emt 0:00:00]} Nf6 {[%emt 0:00:00]} 44. Bd3 {[%emt 0:00:00]} Nd7 {[%emt 0:00:00]} 45. h5 {[%emt 0:00:00]} Bg5 {[%emt 0:00:00]} 46. hxg6 {[%emt 0:00:00]} fxg6 {[%emt 0:00:40]} 47. Qg4 {[%emt 0:00:00]} h6 {[%emt 0:00:00]} 48. f4 {[%emt 0:00:14]} exf4 {[%emt 0:00:00]} 49. gxf4 {[%emt 0:00:04]} Nf6 {[%emt 0:00:00]} 50. Qh3 {[%emt 0:00:32]} Bxf4 {[%emt 0:00:00]} 51. Nf5+ {[%emt 0:00:04]} Nxf5 {[%emt 0:00:09]} 52. Bxf4 {[%emt 0:00:41]} Nxe4 {[%emt 0:00:07]} 53. Kh2 {[%emt 0:01:17]} Nf2 {[%emt 0:00:15]} 54. Qf3 {[%emt 0:00:25]} Nxd3 {[%emt 0:00:01]} 55. Qxd3 {[%emt 0:00:10]} Qh4+ {[%emt 0:00:01]} 56. Kg2 {[%emt 0:00:04]} Qxf4 {[%emt 0:00:09]} 57. Qc3+ {[%emt 0:00:02]} Nd4 {[%emt 0:00:10]} 58. Nd2 {[%emt 0:00:10]} Qg5+ {[%emt 0:00:09]} 59. Kh1 {[%emt 0:00:04]} Qh4+ {[%emt 0:00:08]} 60. Kg2 {[%emt 0:00:02]} Rf7 {[%emt 0:00:04]} 61. Qe3 {[%emt 0:00:14]} Re7 {[%emt 0:00:16]} 62. Ne4 {[%emt 0:00:34]} Rxe4 {[%emt 0:00:14]} 63. Rb7+ {[%emt 0:00:06]} Bxb7 {[%emt 0:00:03]} 64. a6 {[%emt 0:00:01]} Rxe3 {[%emt 0:00:06]} 65. a7 {[%emt 0:00:01]} Qg3+ {[%emt 0:00:02]} 66. Kh1 {[%emt 0:00:08]} Re1# {[%emt 0:00:13]} 0-1